fUST/lending_fUST_20240619
["ID","MTS","AMOUNT","RATE_DAILY","PERIOD"]
[329854946,1718761842569,-274.75842143,0.00019966,2]
[329854947,1718761842578,-1935.3,0.00019966,2]
[329854948,1718761842587,-500.0,0.00019966,2]
[329854949,1718761842596,-863.47,0.00019966,2]
[329854950,1718761842605,-500.0,0.00019966,2]
[329854951,1718761842614,-547.37,0.00019966,2]
[329854952,1718761842623,-500.0,0.00019966,2]
[329854953,1718761842633,-623.25,0.00019966,2]
[329854954,1718761842642,-500.0,0.00019966,2]
[329854955,1718761842651,-199.882047,0.00019967,2]
[329854956,1718761842660,-199.882047,0.00019967,2]
[329854957,1718761842670,-519.59,0.00019967,2]
[329854958,1718761842679,-1117.01,0.00019967,2]
[329854959,1718761842688,-2913.47,0.00019967,2]
[329854960,1718761842698,-3736.53328308,0.00019967,2]
[329854961,1718761842710,-258.75359852,0.00019967,2]
[329854995,1718761844162,-7040.0,0.00019967,2]
[329855029,1718761846928,-257.82305983,0.00017773,2]
[329855040,1718762034237,281.0,0.00025,60]
[329855047,1718762836159,-214.61400831,0.00016749,2]
[329855048,1718762840187,-15.77159859,0.00016749,2]
[329855049,1718762840208,-212.189693,0.00016766,2]
[329855050,1718762840231,-199.5249207,0.00016819,2]
[329855051,1718762840250,-155.13012098,0.00017772,2]
[329855052,1718762840271,-214.61400831,0.00017772,2]
[329855053,1718762840292,-300.0,0.00017772,2]
[329855054,1718762840315,-12.33025658,0.00017773,2]
[329855055,1718762841120,-487.66974342,0.00017773,2]
[329855056,1718762841142,-500.0,0.00017773,2]
[329855057,1718762841163,-351.1503988,0.00017773,2]
[329855058,1718762842096,-89.17840115,0.00017773,2]
[329855059,1718762842117,-500.0,0.00017773,2]
[329855060,1718762842138,-501.34021178,0.00017773,2]
[329855061,1718762842159,-171.50213476,0.00017773,2]
[329855062,1718762851110,-328.49786524,0.00017773,2]
[329855063,1718762851131,-500.0,0.00017773,2]
[329855064,1718762851154,-225.34153213,0.00017773,2]
[329855098,1718763040580,-300.0,0.00017772,2]
[329855101,1718763040591,-500.0,0.00017773,2]
[329855104,1718763040602,-228.96966376,0.00017773,2]
[329855107,1718763040613,-211.28862554,0.00017773,2]
[329855109,1718763040630,-500.0,0.00017773,2]
[329855112,1718763040640,-163.12425867,0.00017773,2]
[329855117,1718763040650,-500.0,0.00017773,2]
[329855121,1718763040660,-500.0,0.00017774,2]
[329855124,1718763040670,-155.28957394,0.00018,2]
[329855128,1718763040680,-477.09395427,0.00018,2]
[329855132,1718763040690,-1306.06068608,0.00018043,2]
[329855136,1718763040699,-825.44569832,0.00018044,2]
[329855139,1718763040710,-500.0,0.00018046,2]
[329855142,1718763040719,-1628.99,0.00018046,2]
[329855144,1718763040728,-515.26710453,0.00018046,2]
[329855147,1718763040737,-3476.4,0.00018046,2]
[329855150,1718763040747,-607.1,0.00018046,2]
[329855153,1718763040756,-848.05,0.00018046,2]
[329855156,1718763040765,-500.0,0.00018046,2]
[329855159,1718763040775,-518.49517326,0.00018046,2]
[329855162,1718763040784,-500.0,0.00018046,2]
[329855165,1718763040794,-500.0,0.00018046,2]
[329855168,1718763040803,-529.00340161,0.00018046,2]
[329855171,1718763040812,-500.0,0.00018046,2]
[329855174,1718763040821,-592.1,0.00018046,2]
[329855177,1718763040831,-405.48653051,0.00018046,2]
[329855180,1718763040841,-500.0,0.00018046,2]
[329855183,1718763040851,-722.86,0.00018046,2]
[329855186,1718763040860,-511.13629773,0.00018046,2]
[329855189,1718763040869,-500.0,0.00018046,2]
[329855192,1718763040879,-500.0,0.00018046,2]
[329855195,1718763040889,-223.04920912,0.00018046,2]
[329855198,1718763040899,-578.23743599,0.00018047,2]
[329855201,1718763040909,-500.0,0.00018047,2]
[329855204,1718763040918,-500.0,0.00018047,2]
[329855207,1718763040927,-500.0,0.00018047,2]
[329855210,1718763040937,-511.69480129,0.00018047,2]
[329855213,1718763040946,-616.41,0.00018047,2]
[329855216,1718763040956,-1032.13,0.00018047,2]
[329855219,1718763040966,-2636.18,0.00018047,2]
[329855222,1718763040975,-500.0,0.00018047,2]
[329855225,1718763040986,-11547.81,0.00018047,2]
[329855228,1718763040995,-646.34807202,0.00018047,2]
[329855231,1718763041004,-522.64436466,0.00018047,2]
[329855234,1718763041013,-500.0,0.00018047,2]
[329855236,1718763041023,-522.16637703,0.00018047,2]
[329855239,1718763041033,-364.31210082,0.00018048,2]
[329855242,1718763041043,-245.0875605,0.00018221,2]
[329855247,1718763041059,-1628.99,0.0001832,2]
[329855250,1718763041077,-3476.4,0.0001832,2]
[329855254,1718763041087,-607.1,0.0001832,2]
[329855258,1718763041097,-848.05,0.0001832,2]
[329855260,1718763041106,-500.0,0.0001832,2]
[329855263,1718763041116,-500.0,0.0001832,2]
[329855267,1718763041126,-500.0,0.0001832,2]
[329855270,1718763041137,-500.0,0.0001832,2]
[329855273,1718763041146,-592.1,0.0001832,2]
[329855275,1718763041156,-500.0,0.0001832,2]
[329855277,1718763041165,-722.86,0.0001832,2]
[329855279,1718763041175,-500.0,0.0001832,2]
[329855281,1718763041186,-500.0,0.00018321,2]
[329855283,1718763041195,-500.0,0.00018321,2]
[329855285,1718763041205,-540.21862075,0.00018321,2]
[329855287,1718763041216,-616.41,0.00018321,2]
[329855289,1718763041226,-1032.13,0.00018321,2]
[329855290,1718763041236,-2636.18,0.00018321,2]
[329855291,1718763041246,-500.0,0.00018321,2]
[329855292,1718763041256,-11547.81,0.00018321,2]
[329855293,1718763041266,-275.12392946,0.00018321,2]
[329855294,1718763041276,-1628.99,0.00018594,2]
[329855295,1718763041286,-3476.4,0.00018594,2]
[329855296,1718763041295,-607.1,0.00018594,2]
[329855297,1718763041305,-848.05,0.00018594,2]
[329855298,1718763041315,-500.0,0.00018594,2]
[329855299,1718763041324,-500.0,0.00018594,2]
[329855300,1718763041334,-500.0,0.00018594,2]
[329855301,1718763041343,-500.0,0.00018594,2]
[329855303,1718763041353,-592.1,0.00018594,2]
[329855305,1718763041363,-500.0,0.00018594,2]
[329855307,1718763041372,-722.86,0.00018594,2]
[329855309,1718763041382,-500.0,0.00018594,2]
[329855310,1718763041394,-500.0,0.00018595,2]
[329855311,1718763041403,-500.0,0.00018595,2]
[329855312,1718763041413,-616.41,0.00018595,2]
[329855313,1718763041423,-1032.13,0.00018595,2]
[329855314,1718763041432,-2636.18,0.00018595,2]
[329855315,1718763041442,-500.0,0.00018595,2]
[329855316,1718763041451,-11547.81,0.00018595,2]
[329855317,1718763041461,-245.08756046,0.00018632,2]
[329855318,1718763041470,-1628.99,0.00018868,2]
[329855319,1718763041480,-3476.4,0.00018868,2]
[329855320,1718763041490,-607.1,0.00018868,2]
[329855321,1718763041499,-848.05,0.00018868,2]
[329855322,1718763041508,-528.48973576,0.00018868,2]
[329855323,1718763041518,-500.0,0.00018868,2]
[329855324,1718763041528,-500.0,0.00018868,2]
[329855325,1718763041542,-500.0,0.00018868,2]
[329855326,1718763041551,-592.1,0.00018868,2]
[329855327,1718763041561,-500.0,0.00018868,2]
[329855328,1718763041571,-722.86,0.00018868,2]
[329855329,1718763041582,-500.0,0.00018868,2]
[329855330,1718763041591,-500.0,0.00018869,2]
[329855331,1718763041602,-500.0,0.00018869,2]
[329855332,1718763041613,-616.41,0.00018869,2]
[329855333,1718763041623,-1032.13,0.00018869,2]
[329855334,1718763041632,-2636.18,0.00018869,2]
[329855335,1718763041644,-500.0,0.00018869,2]
[329855336,1718763041653,-11547.81,0.00018869,2]
[329855337,1718763041662,-1295.9943268,0.000189,2]
[329855338,1718763041671,-163.25901194,0.00019,2]
[329855339,1718763041683,-5922.28888603,0.00019,2]
[329855340,1718763041692,-250.0,0.00019041,2]
[329855341,1718763041702,-245.08756046,0.00019043,2]
[329855342,1718763041711,-20092.93986252,0.00019091,2]
[329855343,1718763041721,-308.405596,0.00019096,2]
[329855344,1718763041731,-1002.444373,0.000191,2]
[329855345,1718763041740,-1628.99,0.00019142,2]
[329855346,1718763041749,-3476.4,0.00019142,2]
[329855347,1718763041759,-607.1,0.00019142,2]
[329855348,1718763041768,-848.05,0.00019142,2]
[329855349,1718763041778,-500.0,0.00019142,2]
[329855350,1718763041788,-524.54700399,0.00019142,2]
[329855351,1718763041799,-341.19055437,0.00019142,2]
[329855352,1718763041808,-592.1,0.00019142,2]
[329855353,1718763041820,-500.0,0.00019142,2]
[329855354,1718763041829,-722.86,0.00019142,2]
[329855355,1718763041839,-500.0,0.00019142,2]
[329855356,1718763041848,-500.0,0.00019143,2]
[329855357,1718763041858,-500.0,0.00019143,2]
[329855358,1718763041868,-616.41,0.00019143,2]
[329855359,1718763041878,-1032.13,0.00019143,2]
[329855360,1718763041889,-2636.18,0.00019143,2]
[329855361,1718763041899,-500.0,0.00019143,2]
[329855362,1718763041909,-11547.81,0.00019143,2]
[329855363,1718763041918,-1628.99,0.00019416,2]
[329855364,1718763041928,-3476.4,0.00019416,2]
[329855365,1718763041941,-607.1,0.00019416,2]
[329855366,1718763041950,-848.05,0.00019416,2]
[329855367,1718763041960,-500.0,0.00019416,2]
[329855368,1718763041970,-592.1,0.00019416,2]
[329855369,1718763041979,-500.0,0.00019416,2]
[329855370,1718763041989,-722.86,0.00019416,2]
[329855371,1718763041999,-500.0,0.00019416,2]
[329855372,1718763042009,-575.57950827,0.00019417,15]
[329855373,1718763042018,-172.221303,0.00019417,2]
[329855374,1718763042027,-362.71552782,0.00019417,2]
[329855375,1718763042036,-444.66832747,0.00019417,2]
[329855376,1718763042046,-151.0,0.00019417,2]
[329855377,1718763042056,-616.41,0.00019417,2]
[329855378,1718763042066,-1032.13,0.00019417,2]
[329855379,1718763042075,-2636.18,0.00019417,2]
[329855380,1718763042084,-500.0,0.00019417,2]
[329855381,1718763042093,-11547.81,0.00019417,2]
[329855382,1718763042103,-245.08756046,0.00019454,2]
[329855383,1718763042112,-305.0,0.0001956,2]
[329855384,1718763042122,-1000.0,0.000196,2]
[329855385,1718763042132,-261.52824487,0.00019654,2]
[329855386,1718763042142,-155.15245547,0.00019689,2]
[329855387,1718763042151,-1356.42911957,0.00019689,2]
[329855388,1718763042161,-1628.99,0.0001969,2]
[329855389,1718763042171,-3476.4,0.0001969,2]
[329855390,1718763042181,-607.1,0.0001969,2]
[329855391,1718763042191,-848.05,0.0001969,2]
[329855392,1718763042200,-500.0,0.0001969,2]
[329855393,1718763042210,-592.1,0.0001969,2]
[329855394,1718763042219,-500.0,0.0001969,2]
[329855395,1718763042229,-477.03633876,0.0001969,2]
[329855396,1718763042249,-245.82366124,0.0001969,2]
[329855397,1718763042259,-500.0,0.0001969,2]
[329855398,1718763042268,-432.95734452,0.00019691,2]
[329855399,1718763042325,-183.45265548,0.00019691,2]
[329855400,1718763042474,-1032.13,0.00019691,2]
[329855401,1718763042484,-2636.18,0.00019691,2]
[329855402,1718763042495,-11547.81,0.00019691,2]
[329855403,1718763042504,-500.0,0.00019691,2]
[329855404,1718763042514,-151.0,0.00019692,2]
[329855405,1718763042523,-151.0,0.00019711,2]
[329855406,1718763042533,-235.629,0.00019759,2]
[329855407,1718763042546,-153.729,0.00019759,2]
[329855408,1718763042555,-150.917,0.00019759,2]
[329855409,1718763042564,-394.58958624,0.000198,2]
[329855410,1718763042574,-245.08756046,0.00019865,2]
[329855411,1718763042584,-5339.9249683,0.000199,2]
[329855412,1718763042594,-663.70913778,0.00019913,2]
[329855413,1718763042604,-1628.99,0.00019964,2]
[329855414,1718763042614,-3476.4,0.00019964,2]
[329855415,1718763042624,-607.1,0.00019964,2]
[329855416,1718763042634,-848.05,0.00019964,2]
[329855417,1718763042645,-500.0,0.00019964,2]
[329855418,1718763042654,-592.1,0.00019964,2]
[329855419,1718763042663,-500.0,0.00019964,2]
[329855420,1718763042673,-722.86,0.00019964,2]
[329855421,1718763042683,-500.0,0.00019964,2]
[329855422,1718763042693,-276.65134222,0.00019965,2]
[329855423,1718763042703,-616.41,0.00019965,2]
[329855424,1718763042713,-1032.13,0.00019965,2]
[329855425,1718763042722,-2636.18,0.00019965,2]
[329855426,1718763042732,-11547.81,0.00019965,2]
[329855427,1718763042742,-500.0,0.00019965,2]
[329855428,1718763042751,-2105.23420887,0.00019985,2]
[329855501,1718763045083,-169.52260607,0.00017673,3]
[329855502,1718763045093,-825.44569832,0.00018,2]
[329855503,1718763045103,-1086.0,0.00018046,2]
[329855504,1718763045112,-3348.88383255,0.00019985,2]
[329855510,1718763045224,-421.18990875,0.00019985,2]
[329855551,1718763459746,203.14,0.00010959,2]
[329855552,1718763470407,169.28,0.00010959,2]
[329855553,1718763481078,846.45,0.00010959,2]
[329855554,1718763510161,1506.50347653,9.999e-05,2]
[329855555,1718763512696,42150.54498866,9.999e-05,2]
[329855556,1718763517173,1139.64315267,0.00010959,2]
[329855557,1718763518890,2039.30991772,9.999e-05,2]
[329855558,1718763530656,1973.28452972,9.999e-05,2]
[329855559,1718763538246,19329.17579556,0.00010959,2]
[329855560,1718763545455,521.20194231,9.999e-05,2]
[329855561,1718763558246,1004.28470121,0.00010959,2]
[329855568,1718763753453,203.8757456,0.00013929,2]
[329855569,1718763914942,24900.0,0.00013943,2]
[329855570,1718763974940,1006.0913038,0.00013927,2]
[329855571,1718763984248,521.20194231,9.999e-05,2]
[329855572,1718763987751,535.0,0.00025,60]
[329855573,1718764016090,500.70428638,0.00025,60]
[329855574,1718764027182,-300.0,0.0001484,2]
[329855575,1718764027201,-3074.07610081,0.00014841,2]
[329855576,1718764027222,-1913.20101544,0.00014841,2]
[329855577,1718764027241,-1977.31672918,0.00014842,2]
[329855578,1718764027260,-300.0,0.00014842,2]
[329855579,1718764027279,-5505.11452253,0.00014843,2]
[329855580,1718764029167,-2423.3929457,0.00014843,2]
[329855581,1718764029188,-1986.09484753,0.00014844,2]
[329855582,1718764029208,-3123.6265604,0.00014846,4]
[329855583,1718764029230,-521.93415699,0.00014846,2]
[329855584,1718764029250,-273.43035309,0.0001485,2]
[329855585,1718764029270,-4372.4099833,0.00014871,2]
[329855586,1718764029290,-1134.47957328,0.00015381,2]
[329855587,1718764032123,-966.01660452,0.00015381,2]
[329855588,1718764044250,-1358.20246784,0.00015354,2]
[329855589,1718764050102,-200.85720718,0.00015354,2]
[329855590,1718764050134,-278.05194905,0.00015355,2]
[329855591,1718764119159,1532.55,0.00014,2]
[329855592,1718764132160,-438.03765211,0.00014773,2]
[329855593,1718764132216,-348.28220318,0.00014773,2]
[329855594,1718764145105,-414.80882071,0.00014773,2]
[329855595,1718764145126,-300.0,0.00015036,2]
[329855596,1718764145147,-300.0,0.00015036,2]
[329855597,1718764145167,-1977.31672918,0.00015037,2]
[329855598,1718764145190,-3074.07610081,0.00015037,2]
[329855599,1718764145209,-7928.50746823,0.00015038,2]
[329855600,1718764145229,-1813.1385027,0.00015039,2]
[329855601,1718764145249,-1387.39079185,0.00015355,2]
[329855602,1718764145269,-154.81422293,0.00015355,2]
[329855603,1718764145288,-1519.30367146,0.00015378,4]
[329855604,1718764145307,-1751.51901939,0.00015379,2]
[329855605,1718764145328,-3953.47350134,0.00015381,2]
[329855606,1718764159124,-155.25105694,0.00015355,2]
[329855607,1718764159151,-3074.07610081,0.0001538,2]
[329855608,1718764159175,-2123.41786748,0.0001538,2]
[329855609,1718764159201,-3973.26721681,0.00015381,2]
[329855610,1718764159226,-1356.80900764,0.00016,2]
[329855611,1718764160692,2467.81,0.00025,60]
[329855612,1718764161311,199.33032142,0.000159,2]
[329855613,1718764225798,45.15962013,9.999e-05,2]
[329855614,1718764225822,219.79,9.999e-05,2]
[329855615,1718764225847,154.82968734,9.999e-05,2]
[329855616,1718764225869,249.74185975,9.999e-05,2]
[329855617,1718764225893,218.7235122,9.999e-05,2]
[329855618,1718764225917,923.50876083,9.999e-05,2]
[329855649,1718764236463,516.41651831,9.999e-05,2]
[329855682,1718764239905,-183.28840626,0.00016372,2]
[329855683,1718764239915,-190.44465922,0.00016373,2]
[329855684,1718764239926,-435.19575,0.00016438,2]
[329855685,1718764239939,-71.71469212,0.00016438,2]
[329855686,1718764239949,-1306.78,0.00016438,2]
[329855687,1718764239961,-1301.87943056,0.00016449,2]
[329855688,1718764239974,-1466.43305703,0.00016466,2]
[329855689,1718764239984,-371.65660761,0.00016466,2]
[329855690,1718764239996,-300.0,0.00016466,2]
[329855691,1718764240009,-287.0,0.00016466,2]
[329855692,1718764240018,-18185.65347481,0.00016466,2]
[329855701,1718764241935,-576.11596788,0.00016465,2]
[329855702,1718764241944,-903.03169853,0.00016466,2]
[329856083,1718764954436,273.37336231,9.9e-05,2]
[329856084,1718764987692,150.80395486,0.00019861,30]
[329856085,1718764987742,150.80395486,0.00019464,120]
[329856089,1718765203384,150.81901718,0.00019797,30]
[329856090,1718765233171,-709.926094,0.00014383,2]
[329856091,1718765233192,-300.07171996,0.00014597,2]
[329856092,1718765236104,-605.90139657,0.00014597,2]
[329856093,1718765242117,-250.0,0.00014432,2]
[329856094,1718765242137,-330.60610462,0.00014597,2]
[329856095,1718765249174,-342.99518435,0.00014597,2]
[329856096,1718765249198,-301.6614307,0.00014664,2]
[329856097,1718765249220,-165.03575635,0.0001515,2]
[329856098,1718765249244,-458.73126395,0.0001515,2]
[329856099,1718765352113,-244.3151189,0.00014573,2]
[329856100,1718765352136,-300.0,0.00014617,2]
[329856101,1718765352158,-3738.09938245,0.00014618,2]
[329856102,1718765357144,-21161.90061755,0.00014618,2]
[329856103,1718765357166,-494.38486839,0.0001515,2]
[329856104,1718765358112,-1037.40395525,0.0001515,2]
[329856105,1718765358135,-169.69604475,0.00015351,2]
[329856106,1718765367121,-125.44775975,0.00015351,2]
[329856107,1718765367143,-407.8321791,0.0001546,2]
[329856108,1718765367165,-170.0,0.00016079,2]
[329856109,1718765367186,-253.2236699,0.00016267,2]
[329856247,1718765438555,-276.0330016,0.00015452,2]
[329856249,1718765438565,-1257.16387251,0.00016267,2]
[329856251,1718765438574,-157.1401973,0.00016367,2]
[329856253,1718765438584,-5272.58203083,0.00016419,2]
[329856255,1718765438594,-208.59062454,0.00016436,2]
[329856257,1718765438604,-500.0,0.00016438,2]
[329856259,1718765438614,-500.0,0.00016438,2]
[329856260,1718765438623,-500.0,0.00016438,2]
[329856261,1718765438632,-249.74185975,0.00016462,4]
[329856262,1718765438642,-500.0,0.00016463,2]
[329856263,1718765438653,-503.92794389,0.00016463,2]
[329856264,1718765438663,-477.37646819,0.00016463,2]
[329856265,1718765438672,-208.18560625,0.00016463,2]
[329856266,1718765438682,-508.54201282,0.00016463,2]
[329856267,1718765438692,-568.98795629,0.00016463,2]
[329856268,1718765438702,-500.0,0.00016463,2]
[329856269,1718765438711,-504.97776407,0.00016463,2]
[329856270,1718765438721,-500.0,0.00016463,2]
[329856271,1718765438731,-614.76,0.00016463,2]
[329856272,1718765438740,-500.0,0.00016463,2]
[329856273,1718765438750,-1385.52,0.00016463,2]
[329856274,1718765438760,-930.63242047,0.00016464,2]
[329856275,1718765438770,-1785.62053865,0.00016464,2]
[329856276,1718765438784,-1502.97942967,0.00016464,2]
[329856277,1718765438794,-201.57867905,0.00016464,2]
[329856278,1718765438803,-1000.000025,0.00016464,2]
[329856279,1718765438813,-660.57740811,0.00016465,2]
[329856280,1718765438823,-155.02822085,0.00016465,2]
[329856281,1718765438832,-13038.15205011,0.00016466,2]
[329856282,1718765438843,-5416.81660816,0.00016467,2]
[329856283,1718765438852,-500.0,0.00016468,2]
[329856284,1718765438863,-504.127253,0.00016468,2]
[329856285,1718765438873,-508.58546878,0.00016468,2]
[329856286,1718765438882,-500.0,0.00016468,2]
[329856287,1718765438892,-500.0,0.00016468,2]
[329856288,1718765438901,-619.62016238,0.00016468,2]
[329856289,1718765438911,-628.35382347,0.00016468,2]
[329856290,1718765438922,-512.02480085,0.00016468,2]
[329856291,1718765438932,-511.91136377,0.00016468,2]
[329856292,1718765438942,-510.88779493,0.00016468,2]
[329856293,1718765438953,-510.19014575,0.00016468,2]
[329856294,1718765438964,-505.98872675,0.00016468,2]
[329856295,1718765438974,-534.4518771,0.00016468,2]
[329856296,1718765438984,-502.61558594,0.00016468,2]
[329856297,1718765438993,-512.38395315,0.00016468,2]
[329856298,1718765439003,-500.0,0.00016468,2]
[329856299,1718765439013,-500.0,0.00016468,2]
[329856300,1718765439023,-500.0,0.00016468,2]
[329856301,1718765439036,-948.98,0.00016468,2]
[329856302,1718765439048,-2618.26,0.00016468,2]
[329856303,1718765439061,-523.47,0.00016468,2]
[329856304,1718765439075,-504.61943379,0.00016468,2]
[329856305,1718765439089,-500.0,0.00016468,2]
[329856306,1718765439102,-511.5237828,0.00016468,2]
[329856307,1718765439114,-184.1924207,0.00016468,2]
[329856308,1718765439127,-3253.69868873,0.00016468,2]
[329856412,1718765441973,-453.40201646,0.00016463,2]
[329856491,1718765444089,-46.59798354,0.00016463,2]
[329856493,1718765444100,-334.60574109,0.00016468,2]
[329856749,1718765446742,-530.3143691,0.00016463,2]
[329856752,1718765446753,-500.0,0.00016466,2]
[329856755,1718765446764,-4206.02557018,0.00016468,2]
[329856758,1718765446775,-769.53,0.00016468,2]
[329856760,1718765446788,-500.0,0.00016468,2]
[329856762,1718765446798,-500.0,0.00016468,2]
[329856765,1718765446809,-520.61547763,0.00016468,2]
[329856767,1718765446820,-500.8408897,0.00016468,2]
[329856768,1718765446831,-500.0,0.00016468,2]
[329856771,1718765446842,-500.0,0.00016468,2]
[329856773,1718765446853,-500.0,0.00016468,2]
[329856775,1718765446863,-512.96366627,0.00016468,2]
[329856777,1718765446874,-500.0,0.00016468,2]
[329856779,1718765446884,-523.07204452,0.00016468,2]
[329856781,1718765446895,-500.0,0.00016468,2]
[329856782,1718765446906,-632.97,0.00016468,2]
[329856783,1718765446916,-1187.53801351,0.00016469,2]
[329856784,1718765446927,-516.36679729,0.00016469,2]
[329856785,1718765446937,-508.53593184,0.00016469,2]
[329856786,1718765446947,-366.44342083,0.00016469,2]
[329856787,1718765446958,-419.19070174,0.00016469,2]
[329856788,1718765446968,-500.0,0.00016469,2]
[329856789,1718765446979,-500.0,0.00016469,2]
[329856790,1718765446989,-513.13731804,0.00016469,2]
[329856791,1718765446999,-501.56718923,0.00016469,2]
[329856792,1718765447010,-500.0,0.00016469,2]
[329856794,1718765447020,-500.0,0.00016469,2]
[329856795,1718765447032,-508.06430815,0.00016469,2]
[329856797,1718765447042,-2073.27,0.00016469,2]
[329856799,1718765447052,-271.10452201,0.00016469,2]
[329856801,1718765447062,-645.16613554,0.00016469,2]
[329856803,1718765447072,-6837.27319734,0.0001647,2]
[329856806,1718765447087,-2100.49736288,0.0001647,2]
[329856808,1718765447098,-500.0,0.00016471,2]
[329856810,1718765447109,-510.68339046,0.00016471,2]
[329856812,1718765447120,-548.22593488,0.00016471,2]
[329856814,1718765447131,-500.0,0.00016471,2]
[329856816,1718765447143,-458.0804145,0.00016471,2]
[329857064,1718765699763,524.03705854,9.999e-05,2]
[329857065,1718766431167,-250.0,0.00014863,2]
[329857066,1718766431188,-462.270051,0.00015115,2]
[329857067,1718766431210,-241.46993774,0.0001543,2]
[329857068,1718766431231,-100.09940863,0.00015431,2]
[329857070,1718766452158,-199.90059137,0.00015431,2]
[329857071,1718766452179,-1138.91955085,0.00015432,2]
[329857072,1718766454109,-956.50360875,0.00015432,2]
[329857074,1718766546111,-897.37090516,0.00015386,2]
[329857075,1718766552120,-24002.62909484,0.00015386,2]
[329857076,1718766552148,-1595.564564,0.00016238,2]
[329857105,1718766632851,-190.44465922,0.00016338,2]
[329857106,1718766632861,-84.71708735,0.00016361,2]
[329857233,1718766639159,-250.77282428,0.00016361,2]
[329857235,1718766639170,-335.48991161,0.00016364,2]
[329857237,1718766639181,-335.48991161,0.00016366,2]
[329857239,1718766639191,-335.48991161,0.00016369,2]
[329857240,1718766639203,-335.48991161,0.00016371,2]
[329857242,1718766639213,-1075.9748944,0.00016389,2]
[329857243,1718766639269,-4196.60713643,0.00016389,2]
[329857244,1718766639279,-509.57067597,0.00016459,2]
[329857245,1718766639289,-633.50941019,0.0001646,2]
[329857246,1718766639299,-305.2735679,0.0001646,2]
[329857247,1718766639309,-500.0,0.0001646,2]
[329857248,1718766639320,-510.80419316,0.0001646,2]
[329857249,1718766639330,-503.69654595,0.0001646,2]
[329857250,1718766639340,-1449.76,0.0001646,2]
[329857251,1718766639350,-507.28358585,0.0001646,2]
[329857252,1718766639361,-500.0,0.0001646,2]
[329857253,1718766639371,-500.0,0.0001646,2]
[329857254,1718766639381,-512.32829986,0.0001646,2]
[329857255,1718766639391,-500.0,0.0001646,2]
[329857256,1718766639401,-500.0,0.0001646,2]
[329857257,1718766639412,-510.63674784,0.0001646,2]
[329857258,1718766639421,-182.79537275,0.0001646,2]
[329857259,1718766639431,-2591.48,0.0001646,2]
[329857260,1718766639441,-500.0,0.0001646,2]
[329857261,1718766639454,-500.0,0.0001646,2]
[329857262,1718766639463,-512.72641785,0.0001646,2]
[329857263,1718766639473,-543.32,0.0001646,2]
[329857264,1718766639483,-532.81730994,0.0001646,2]
[329857265,1718766639493,-500.0,0.0001646,2]
[329857266,1718766639503,-535.8215479,0.0001646,2]
[329857267,1718766639514,-779.13,0.0001646,2]
[329857268,1718766639524,-515.49167462,0.0001646,2]
[329857269,1718766639534,-500.0,0.0001646,2]
[329857270,1718766639662,-524.87625273,0.0001646,2]
[329857271,1718766639672,-500.0,0.0001646,2]
[329857272,1718766639682,-509.32191865,0.0001646,2]
[329857273,1718766639692,-500.0,0.0001646,2]
[329857274,1718766639704,-519.75687066,0.0001646,2]
[329857275,1718766639714,-500.0,0.0001646,2]
[329857276,1718766639724,-651.64,0.0001646,2]
[329857277,1718766639734,-504.23956298,0.0001646,2]
[329857278,1718766639744,-280.07746847,0.0001646,2]
[329857279,1718766639759,-513.5011581,0.0001646,2]
[329857280,1718766639769,-500.0,0.0001646,2]
[329857281,1718766639780,-503.60559272,0.0001646,2]
[329857282,1718766639791,-500.0,0.0001646,2]
[329857283,1718766639800,-511.13616167,0.0001646,2]
[329857284,1718766639810,-500.0,0.0001646,2]